bitfinex-derivatives/quotes_BTCF0:USTF0_20250411
["timestamp","ask_amount","ask_price","bid_price","bid_amount"]
[1744375710755,0.3878347,82126.0,82125.0,0.1218762]
[1744375711155,0.3878347,82126.0,82125.0,0.1218362]
[1744375711343,0.3878347,82126.0,82125.0,0.1218762]
[1744375711542,0.1732,82126.0,82125.0,0.1218762]
[1744375712552,0.2673173,82138.0,82137.0,0.1218184]
[1744375713051,0.1455004,82138.0,82137.0,0.1218184]
[1744375713447,0.1218143,82140.0,82139.0,0.1218154]
[1744375713854,0.2137143,82140.0,82139.0,0.1218154]
[1744375716358,0.27294505,82140.0,82139.0,0.1218154]
[1744375716854,0.27294505,82140.0,72010.0,9.959e-05]
[1744375716855,0.1827445,82132.0,82131.0,0.1218228]
[1744375717050,0.1827445,82132.0,82131.0,0.1827349]
[1744375717250,0.1827445,82132.0,82131.0,0.1827749]
[1744375717451,0.1727,82133.0,82132.0,0.1218258]
[1744375717656,0.05923075,82140.0,82139.0,0.1218154]
[1744375717854,0.18104465,82140.0,82139.0,0.4826154]
[1744375718959,0.26564465,82140.0,82139.0,0.1218154]
[1744375719357,0.42506985,82140.0,82139.0,0.1218154]
[1744375719860,0.51576985,82140.0,82139.0,0.1218154]
[1744375721763,0.30325595,82140.0,82139.0,0.4826154]
[1744375721964,0.21865595,82140.0,82139.0,0.5674154]
[1744375722757,0.30405595,82140.0,82139.0,0.5674154]
[1744375722958,0.23323075,82140.0,82139.0,0.5674154]
[1744375723358,0.23323075,82140.0,82139.0,0.6538154]
[1744375724066,0.23323075,82140.0,82139.0,0.39792335]
[1744375724263,0.23323075,82140.0,82139.0,0.51973875]
[1744375725366,0.19677225,82141.0,82140.0,0.1218139]
[1744375725575,0.19677225,82141.0,82140.0,0.2949139]
[1744375725761,0.16291175,82141.0,82140.0,0.5449139]
[1744375726062,0.174,82156.0,82155.0,0.1217917]
[1744375726269,0.4288516,82156.0,82155.0,0.1217917]
[1744375726563,0.4288516,82156.0,82155.0,0.3008917]
[1744375726762,0.3434516,82156.0,82155.0,0.3008917]
[1744375726961,0.3434516,82156.0,82155.0,0.3857917]
[1744375728471,0.2548516,82156.0,82155.0,0.3857917]
[1744375729565,0.19706875,82159.0,82158.0,0.1217872]
[1744375729866,0.15148975,82159.0,82158.0,0.1217872]
[1744375730367,0.05400525,82159.0,82158.0,0.1217872]
[1744375730766,0.18204537,82161.0,82160.0,0.1217843]
[1744375731162,0.13989747,82161.0,82160.0,0.1217843]
[1744375731362,0.13989747,82161.0,82160.0,0.2992843]
[1744375732171,0.31075445,82169.0,82163.0,0.1217798]
[1744375732367,0.21845445,82169.0,82163.0,0.4825798]
[1744375732572,0.21845445,82169.0,82168.0,0.1217724]
[1744375732879,0.0863,82180.0,82179.0,0.1217561]
[1744375733578,0.2080546,82180.0,82179.0,0.1217961]
[1744375734164,0.0863,82180.0,82179.0,0.1217961]
[1744375735269,0.0863,82180.0,82179.0,0.2126961]
[1744375735877,0.1781,82180.0,82179.0,0.2126961]
[1744375736072,0.1781,82180.0,82179.0,0.1217961]
[1744375736275,0.2998546,82180.0,82179.0,0.1217961]
[1744375736672,0.2998546,82180.0,82179.0,0.1217561]
[1744375736873,0.2998546,82180.0,82179.0,0.1217961]
[1744375737174,0.2998546,82180.0,82179.0,0.1217561]
[1744375737373,0.2998546,82180.0,82179.0,0.1217961]
[1744375737573,0.2998546,82180.0,82179.0,0.1217561]
[1744375737778,0.2998546,82180.0,82179.0,0.1217961]
[1744375739583,0.1781,82180.0,82179.0,0.1217961]
[1744375741081,0.1781,82180.0,82179.0,0.2120961]
[1744375741476,0.1781,82180.0,82179.0,0.1217961]
[1744375742783,0.1781,82180.0,82179.0,0.2073961]
[1744375743370,0.1781,82180.0,82179.0,0.1217961]
[1744375743582,0.1781,82180.0,82179.0,0.1217561]
[1744375743785,0.1781,82180.0,82179.0,0.1217961]
[1744375748286,0.2998546,82180.0,82179.0,0.1217961]
[1744375748685,0.2998546,82180.0,82170.0,7.29e-05]
[1744375748686,0.1217665,82172.0,82171.0,0.12194924]
[1744375748989,0.0608815,82175.0,82171.0,0.12194924]
[1744375748990,0.1217648,82174.0,82173.0,0.0608824]
[1744375749288,0.2986648,82174.0,82173.0,0.0608824]
[1744375749488,0.1769,82174.0,82173.0,0.1826459]
[1744375749883,0.1769,82174.0,82173.0,0.1826859]
[1744375750806,0.1769,82174.0,82173.0,0.5434859]
[1744375752705,0.1769,82174.0,82173.0,0.5434459]
[1744375752907,0.1769,82174.0,82173.0,0.5434859]
[1744375754105,0.1088557,82183.0,82182.0,0.1217517]
[1744375754316,0.1088557,82183.0,82182.0,0.4825517]
[1744375754504,0.1088557,82183.0,82182.0,0.6581517]
[1744375755315,0.1088557,82183.0,82182.0,0.7478517]
[1744375756903,0.0848,82186.0,82185.0,0.1217472]
[1744375758002,0.0848,82186.0,82185.0,0.2119472]
[1744375758804,0.0848,82186.0,82185.0,0.1217472]
[1744375760121,0.0848,82186.0,82185.0,0.2187472]
[1744375762518,0.0848,82186.0,82185.0,0.5795472]
[1744375763116,0.0848,82186.0,82185.0,0.4825472]
[1744375763509,0.0848,82186.0,82185.0,0.4825872]
[1744375763709,0.1826,82186.0,82185.0,0.4825872]
[1744375766113,0.1826,82186.0,82185.0,0.4825472]
[1744375766313,0.1826,82186.0,82185.0,0.4825872]
[1744375767327,0.0848,82186.0,82185.0,0.4825872]
[1744375767509,0.0848,82186.0,82185.0,0.6634872]
[1744375767712,0.18208553,82194.0,82193.0,0.1217354]
[1744375767913,0.18208553,82194.0,82193.0,0.6638354]
[1744375768622,0.18208553,82194.0,82193.0,0.67393215]
[1744375769018,0.18208553,82194.0,82193.0,0.49263215]
[1744375769212,0.18208553,82194.0,82193.0,0.1217754]
[1744375769617,0.18208553,82194.0,82193.0,0.1217354]
[1744375769823,0.30381943,82194.0,82193.0,0.1217754]
[1744375770017,0.30381943,82194.0,82193.0,0.1217354]
[1744375770222,0.57351943,82194.0,82193.0,0.1217754]
[1744375770418,1.18431943,82194.0,82193.0,4e-05]
[1744375770722,0.1826201,82187.0,82186.0,0.1826171]
[1744375771124,0.3621201,82187.0,82186.0,0.1826171]
[1744375772718,0.7229201,82187.0,82186.0,0.1826171]
[1744375773930,0.6011729,82187.0,82186.0,0.1826171]
[1744375774519,0.66036782,82187.0,82186.0,0.1826171]
[1744375774718,0.1217457,82186.0,82185.0,0.1218007]
[1744375775137,0.3098457,82186.0,82185.0,0.1218007]
[1744375775322,0.3098457,82186.0,82185.0,0.1217467]
[1744375775522,0.3098457,82186.0,82185.0,0.1217867]
[1744375777424,0.0608763,82182.0,82167.0,9.841e-05]
[1744375777728,0.1826757,82161.0,82160.0,0.1217836]
[1744375778031,0.1217812,82163.0,82162.0,0.1826704]
[1744375778419,0.3115812,82163.0,82162.0,0.0608906]
[1744375778636,0.6723812,82163.0,82162.0,0.0608906]
[1744375778932,0.6723812,82163.0,82162.0,0.0609306]
[1744375779934,0.3115812,82163.0,82162.0,0.0609306]
[1744375787035,0.3115812,82163.0,82162.0,4e-05]
[1744375787437,0.3115812,82163.0,82162.0,0.1218213]
[1744375787637,0.3115812,82163.0,82162.0,0.1217813]
[1744375787846,0.3115812,82163.0,82162.0,0.1218213]
[1744375791048,0.3115812,82163.0,82162.0,0.1217813]
[1744375791250,0.3115812,82163.0,82162.0,0.1218213]
[1744375791654,0.3115812,82163.0,82162.0,4e-05]
[1744375792049,0.1217813,82162.0,82161.0,0.1217827]
[1744375792450,0.3116813,82162.0,82161.0,0.1217827]
[1744375797755,0.1217828,82161.0,82160.0,0.1217842]
[1744375798159,0.3113828,82161.0,82160.0,0.1217842]
[1744375798858,0.3113828,82161.0,82160.0,0.1218242]
[1744375799054,0.1217917,82155.0,82148.0,0.060901]
[1744375799357,0.4825917,82155.0,82150.0,5.4e-05]
[1744375799570,0.7643917,82155.0,82152.0,0.121796]
[1744375799959,0.7643917,82155.0,82150.0,5.4e-05]
[1744375800161,0.1217976,82151.0,82150.0,5.4e-05]
[1744375800656,0.1218021,82148.0,82142.0,0.1218103]
[1744375800863,0.1218021,82148.0,82141.0,0.1218124]
[1744375801062,0.3073021,82148.0,82140.0,5.4e-05]
[1744375801269,0.1218124,82141.0,82140.0,5.4e-05]
[1744375801568,0.1218139,82140.0,82139.0,0.00018254]
[1744375801754,0.4036139,82140.0,82139.0,0.00018254]
[1744375801956,0.1218347,82126.0,82125.0,7.29e-05]
[1744375802156,0.1218347,82126.0,82123.0,0.00048707]
[1744375802157,0.1218377,82124.0,82123.0,0.12232617]
[1744375802766,0.3138377,82124.0,82123.0,0.12232617]
[1744375804267,0.2170377,82124.0,82123.0,0.12232617]
[1744375804464,0.2170377,82124.0,82123.0,0.31342617]
[1744375804465,0.3138377,82124.0,82123.0,0.31342617]
[1744375806368,0.6746377,82124.0,82123.0,0.00048707]
[1744375806673,0.1827891,82111.0,82110.0,0.12185]
[1744375807465,0.1827891,82111.0,82108.0,0.18569841]
[1744375807466,0.00018266,82119.0,82116.0,0.060924]
[1744375807770,0.2214466,82118.0,82117.0,0.307048]
[1744375807971,0.2214466,82118.0,82117.0,0.404248]
[1744375809363,0.3122466,82118.0,82117.0,0.404248]
[1744375809970,0.3122466,82118.0,82117.0,0.2824]
[1744375811279,0.1218599,82109.0,82108.0,9.841e-05]
[1744375811760,0.1218629,82107.0,82106.0,0.1902]
[1744375812269,0.2163629,82107.0,82106.0,0.1902]
[1744375812464,0.3109629,82107.0,82106.0,0.0931]
[1744375812770,0.2164629,82107.0,82106.0,0.0931]
[1744375812962,0.5772629,82107.0,82106.0,0.0931]
[1744375813366,0.5772629,82107.0,82106.0,0.09314]
[1744375813868,0.6717629,82107.0,82106.0,0.09314]
[1744375814369,0.1218777,82097.0,82096.0,2e-08]
[1744375814578,0.0609418,82094.0,82091.0,0.1956]
[1744375814872,0.1218852,82092.0,82091.0,0.1956]
[1744375815071,0.1218852,82092.0,82091.0,0.0953]
[1744375815368,0.1218967,82085.0,82084.0,0.060948]
[1744375815774,0.1218967,82085.0,82084.0,0.060988]
[1744375815965,0.1218967,82085.0,82084.0,0.155388]
[1744375816165,0.3175967,82085.0,82084.0,4e-05]
[1744375816362,0.3175967,82085.0,82084.0,0.121937]
[1744375816567,0.3175967,82085.0,82084.0,0.121897]
[1744375816770,0.3175967,82085.0,82084.0,0.121937]
[1744375816970,0.3175967,82085.0,82084.0,0.216337]
[1744375817171,0.3175967,82085.0,82084.0,0.310937]
[1744375817775,0.3608,82089.0,82088.0,0.1218911]
[1744375818069,0.1218902,82089.0,82088.0,0.1218911]
[1744375818272,0.1218902,82089.0,82088.0,0.2215911]
[1744375818576,0.2204902,82089.0,82088.0,0.2215911]
[1744375818876,0.0986,82089.0,82088.0,0.2215911]
[1744375819081,0.00018266,82101.0,82098.0,0.0609381]
[1744375819378,0.00018266,82101.0,82100.0,0.1218733]
[1744375819771,0.00018266,82101.0,82100.0,0.3161733]
[1744375820769,0.00018266,82101.0,82100.0,0.6769733]
[1744375824874,6e-08,82101.0,82100.0,0.9269733]
[1744375828878,0.1085727,82133.0,82132.0,0.1218258]
[1744375829481,0.1085727,82133.0,82132.0,0.4126258]
[1744375831584,0.19268266,82141.0,82140.0,0.1218139]
[1744375831779,0.19268266,82141.0,82140.0,0.1307551]
[1744375832284,0.44268266,82141.0,82126.0,0.0609173]
[1744375832480,0.1218319,82129.0,82128.0,0.1218306]
[1744375832676,0.1218332,82127.0,82126.0,0.1827509]
[1744375834680,0.2167332,82127.0,82126.0,0.1827509]
[1744375835387,0.2167332,82127.0,82126.0,0.1821509]
[1744375835586,0.3146332,82127.0,82126.0,0.1821509]
[1744375836387,0.1218362,82125.0,82119.0,0.0609222]
[1744375836574,0.1218362,82125.0,82114.0,0.0967]
[1744375836781,0.3168362,82125.0,82124.0,0.12206036]
[1744375837989,0.3168362,82125.0,82124.0,0.00022266]
[1744375838182,0.3168362,82125.0,82124.0,0.12206036]
[1744375839189,0.195,82125.0,82124.0,0.12206036]
[1744375839681,0.195,82125.0,82124.0,0.21796036]
[1744375840290,0.195,82125.0,82124.0,0.12206036]
[1744375840891,0.3168362,82125.0,82124.0,0.12206036]
[1744375842399,0.3168362,82125.0,82124.0,0.00022266]
[1744375842692,0.3168362,82125.0,82124.0,0.12202036]
[1744375842992,0.3168362,82125.0,82124.0,0.12206036]
[1744375844385,0.195,82125.0,82124.0,0.12206036]
[1744375844590,0.195,82125.0,82124.0,0.21966036]
[1744375845589,0.445,82125.0,82116.0,0.0609247]
[1744375845793,0.1218525,82117.0,82116.0,0.1827692]
[1744375845989,0.4826466,82118.0,82117.0,0.121848]
[1744375846587,0.5842466,82118.0,82117.0,0.121848]
[1744375848902,0.2234466,82118.0,82117.0,0.121848]
[1744375851391,0.1016,82118.0,82117.0,0.121848]
[1744375851691,0.2234466,82118.0,82117.0,0.121848]
[1744375852602,0.1016,82118.0,82117.0,0.121848]
[1744375853199,0.18095451,82124.0,82123.0,0.1218391]
[1744375853699,0.10416961,82124.0,82123.0,0.4156391]
[1744375853888,0.25384055,82140.0,82128.0,0.1218317]
[1744375854088,0.25384055,82140.0,82139.0,0.1218154]
[1744375854692,0.25384055,82140.0,82139.0,0.2241554]
[1744375854890,0.29156867,82143.0,82142.0,0.121811]
[1744375857908,0.29156867,82143.0,82142.0,0.217711]
[1744375858113,0.0945,82145.0,82144.0,0.121808]
[1744375858902,0.2163065,82145.0,82144.0,0.121808]
[1744375859105,0.2163065,82145.0,82142.0,0.0959]
[1744375859106,0.1827135,82144.0,82142.0,0.0609054]
[1744375859408,0.1827135,82144.0,82143.0,0.0609047]
[1744375859607,0.1827135,82144.0,82143.0,0.1827127]
[1744375859811,0.0613027,82146.0,82145.0,0.1218065]
[1744375861210,0.0004,82146.0,82143.0,0.0609447]
[1744375861402,0.482608,82144.0,82143.0,4e-05]
[1744375861599,0.1218095,82143.0,82142.0,0.1218106]
[1744375862306,0.1827201,82141.0,82140.0,0.1218134]
[1744375862513,0.1218169,82138.0,82137.0,0.1827242]
[1744375862905,0.2186169,82138.0,82137.0,0.1827242]
[1744375863307,0.3146169,82138.0,82137.0,0.1827242]
[1744375863915,0.1218258,82134.0,82133.0,0.1218232]
[1744375864212,0.1218258,82132.0,82131.0,0.00018266]
[1744375864411,0.1218258,82132.0,82131.0,0.12200996]
[1744375864597,0.1218258,82132.0,82131.0,0.00018266]
[1744375864799,0.1218258,82132.0,82120.0,0.1218969]
[1744375864800,0.1218421,82121.0,82120.0,0.1218969]
[1744375865002,0.1218421,82121.0,82120.0,0.1218429]
[1744375865199,0.0609214,82121.0,82116.0,0.0609245]
[1744375865402,0.0609214,82121.0,82120.0,4e-05]
[1744375865601,0.1218406,82123.0,82106.0,5.4e-05]
[1744375865602,0.121848,82117.0,82116.0,0.1218481]
[1744375865906,0.3608,82117.0,82108.0,5.4e-05]
[1744375866103,0.1218599,82109.0,82108.0,0.1827886]
[1744375866304,0.1218599,82109.0,82108.0,0.1828286]
[1744375866706,0.1218599,82109.0,82108.0,0.1827886]
[1744375866909,0.1218599,82109.0,82108.0,0.1828286]
[1744375867101,0.1218629,82107.0,82106.0,0.21833892]
[1744375869814,0.1218659,82105.0,82104.0,0.1218672]
[1744375870011,0.1218688,82103.0,82102.0,0.0609347]
[1744375871531,0.1218718,82101.0,82100.0,0.0609361]
[1744375873528,0.2230718,82101.0,82100.0,0.0609361]
[1744375875229,0.2230718,82101.0,82100.0,0.2563361]
[1744375875531,0.3608,82103.0,82102.0,0.1218703]
[1744375875833,0.1827974,82109.0,82108.0,0.2437168]
[1744375876331,0.0609286,82111.0,82110.0,0.1218584]
[1744375876930,0.0609286,82111.0,82110.0,0.3172584]
[1744375880934,0.0609221,82120.0,82115.0,0.0609254]
[1744375881135,0.1827716,82118.0,82117.0,0.121848]
[1744375881337,0.2755716,82118.0,82117.0,0.121848]
[1744375881538,0.2755716,82118.0,82117.0,0.221448]
[1744375883239,0.3715716,82118.0,82117.0,0.221448]
[1744375883938,0.1827716,82118.0,82117.0,0.221448]
[1744375884140,0.1827716,82118.0,82117.0,0.322248]
[1744375885040,0.2811716,82118.0,82117.0,0.322248]
[1744375886039,0.6419716,82118.0,82117.0,0.322248]
[1744375886436,0.2811716,82118.0,82117.0,0.322248]
[1744375886737,0.6419716,82118.0,82117.0,0.322248]
[1744375887238,0.2811716,82118.0,82117.0,0.221448]
[1744375888143,0.2811716,82118.0,82117.0,0.322548]
[1744375888331,0.10857552,82121.0,82120.0,0.1218436]
[1744375888734,0.10857552,82121.0,82120.0,0.4196436]
[1744375888942,0.00018266,82125.0,82124.0,0.1218377]
[1744375889240,0.00018266,82125.0,82124.0,0.3253377]
[1744375892235,0.18115232,82132.0,82131.0,0.1218273]
[1744375892441,0.18115232,82132.0,82131.0,0.4826273]
[1744375892638,0.18115232,82132.0,82131.0,0.6819273]
[1744375893235,0.42188996,82140.0,82131.0,0.5601]
[1744375893433,0.1573077,82139.0,82138.0,0.1218154]
[1744375893839,0.2617077,82139.0,82138.0,0.1218154]
[1744375894936,0.0964,82139.0,82138.0,0.1218154]
[1744375895543,0.00018266,82140.0,82139.0,0.1218154]
[1744375897235,0.12199656,82140.0,82139.0,0.1218154]
[1744375897435,0.22599656,82140.0,82139.0,0.1218154]
[1744375898534,0.32629656,82140.0,82139.0,0.1218154]
[1744375898736,0.32629656,82140.0,82139.0,0.1218554]
[1744375901146,0.4349943,82140.0,82139.0,0.1218554]
[1744375905445,0.32629656,82140.0,82139.0,0.1218554]
[1744375908753,0.00018266,82140.0,82139.0,0.1218554]
[1744375911251,0.12199656,82140.0,82139.0,0.1218554]
[1744375911446,0.12199656,82140.0,82139.0,4e-05]
[1744375911651,0.1218228,82134.0,82131.0,0.3608]
[1744375911944,0.1218228,82134.0,82133.0,5.4e-05]
[1744375912150,0.1218228,82134.0,82131.0,0.3608]
[1744375912151,0.1218317,82128.0,82127.0,0.00912975]
[1744375912352,0.1218317,82128.0,82127.0,0.13096295]
[1744375912543,0.3108317,82128.0,82127.0,0.13096295]
[1744375912744,0.3108317,82128.0,82127.0,0.13100295]
[1744375912943,0.3108317,82128.0,82127.0,0.00916975]
[1744375913143,0.3108317,82128.0,82127.0,0.1218732]
[1744375917064,0.37007078,82128.0,82127.0,0.1218732]
[1744375920063,0.5518839,82128.0,82127.0,0.1218732]
[1744375920359,0.9126839,82128.0,82127.0,4e-05]
[1744375921957,0.9126839,82128.0,82127.0,0.1218732]
[1744375923255,0.9126839,82128.0,82127.0,0.2240732]
[1744375923454,0.6018522,82128.0,82127.0,0.2240732]
[1744375923660,0.6018522,82128.0,82127.0,0.4282732]
[1744375923661,0.05923908,82128.0,82127.0,0.4282732]
[1744375924362,0.05923908,82128.0,82127.0,0.43941555]
[1744375924861,0.18107078,82128.0,82127.0,0.43941555]
[1744375925063,0.18107078,82128.0,82127.0,0.21448235]
[1744375925267,0.38657078,82128.0,82127.0,0.10224]
[1744375925456,0.38657078,82128.0,82127.0,0.2240732]
[1744375927570,0.3273317,82128.0,82127.0,0.2240732]
[1744375929054,0.3273317,82128.0,82127.0,0.3237732]
[1744375929258,0.3273317,82128.0,82127.0,0.2240732]
[1744375930664,0.3273317,82128.0,82127.0,0.10224]
[1744375930963,0.3273317,82128.0,82127.0,0.2240732]
[1744375932464,0.3273317,82128.0,82127.0,0.1218732]
[1744375933259,0.3273317,82128.0,82127.0,4e-05]
[1744375933563,0.1827536,82127.0,82126.0,0.0609173]
[1744375933969,0.3862536,82127.0,82126.0,0.0609173]
[1744375934860,0.447171,82127.0,82126.0,0.182752]
[1744375936268,0.1218362,82125.0,82124.0,0.1628185]
[1744375936455,0.1218362,82125.0,82124.0,0.0609185]
[1744375936661,0.1218377,82124.0,82123.0,0.00018266]
[1744375936861,0.3140377,82124.0,82123.0,0.12202176]
[1744375937166,0.3140377,82124.0,82123.0,0.00018266]
[1744375937366,0.1218436,82120.0,82119.0,5.4e-05]
[1744375937564,0.1218555,82112.0,82111.0,0.00906234]
[1744375938062,0.1218555,82112.0,82110.0,5.4e-05]
[1744375938063,0.121857,82111.0,82110.0,5.4e-05]
[1744375938571,0.314057,82111.0,82110.0,5.4e-05]
[1744375939364,0.32526272,82111.0,82110.0,5.4e-05]
[1744375939565,0.1218733,82100.0,82087.0,0.21833892]
[1744375939773,0.1218733,82100.0,82099.0,0.00056011]
[1744375939963,0.4152733,82100.0,82099.0,0.00056011]
[1744375940565,0.4152733,82100.0,82099.0,0.00048721]
[1744375940769,0.4152733,82100.0,82099.0,0.00052721]
[1744375940973,0.5147133,82100.0,82099.0,0.00048721]
[1744375941162,0.5147133,82100.0,82099.0,0.12240201]
[1744375941569,0.4152733,82100.0,82099.0,0.12240201]
[1744375941767,0.5147133,82100.0,82099.0,0.12240201]
[1744375942164,0.4152733,82100.0,82099.0,0.12240201]
[1744375942364,0.5147133,82100.0,82099.0,0.12240201]
[1744375943067,0.4152733,82100.0,82099.0,0.12240201]
[1744375943278,0.4152733,82100.0,82099.0,0.22030201]
[1744375943279,0.57396021,82100.0,82099.0,0.22030201]
[1744375943573,0.37422021,82100.0,82099.0,0.22030201]
[1744375943765,0.27932021,82100.0,82099.0,0.22030201]
[1744375944058,0.27932021,82100.0,82099.0,0.32380201]
[1744375946274,0.37462021,82100.0,82099.0,0.32380201]
[1744375946877,0.3153733,82100.0,82099.0,0.32380201]
[1744375950079,0.3153733,82100.0,82099.0,0.22030201]
[1744375950580,0.42426033,82100.0,82099.0,0.22030201]
[1744375950773,0.42426033,82100.0,82099.0,0.09842721]
[1744375951078,0.42426033,82100.0,82099.0,0.12236201]
[1744375951277,0.42426033,82100.0,82099.0,0.00052721]
[1744375951475,0.52186033,82100.0,82099.0,0.00052721]
[1744375951672,0.52186033,82100.0,82099.0,0.00048721]
[1744375951868,0.52186033,82100.0,82099.0,0.00052721]
[1744375953267,0.1218896,82089.0,82083.0,0.0988]
[1744375953468,0.1218896,82089.0,82075.0,0.00048736]
[1744375953469,0.1218955,82085.0,82079.0,0.0609518]
[1744375953673,0.060946,82088.0,82079.0,0.1828487]
[1744375953674,0.121903,82080.0,82079.0,0.1828487]
[1744375954976,0.121903,82080.0,82079.0,0.2438005]
[1744375955481,0.318303,82080.0,82079.0,0.2438005]
[1744375957781,0.10882861,82084.0,82083.0,0.1218985]
[1744375958280,0.10882861,82084.0,82083.0,0.3229985]
[1744375960781,0.18148811,82095.0,82088.0,0.1218911]
[1744375960979,0.18148811,82095.0,82094.0,0.1218822]
[1744375961375,0.00018266,82097.0,82096.0,0.1218792]
[1744375961576,0.00018266,82097.0,82096.0,0.4826792]
[1744375961871,0.00018266,82097.0,82096.0,0.6818792]
[1744375963473,0.10884533,82101.0,82100.0,0.1218733]
[1744375964086,0.10884533,82101.0,82100.0,0.3225733]
[1744375966794,0.1218629,82107.0,82106.0,0.1218644]
[1744375967183,0.1218629,82107.0,82106.0,0.3213644]
[1744375969287,0.1218629,82107.0,82106.0,0.101]
[1744375969491,0.1218688,82103.0,82102.0,0.3608]
[1744375969885,0.3128688,82103.0,82102.0,0.3608]
[1744375970890,0.3128688,82103.0,82102.0,0.5436017]
[1744375971194,0.0609307,82108.0,82107.0,0.1218629]
[1744375971587,0.1553307,82108.0,82107.0,0.3235629]
[1744375972000,0.1553307,82108.0,82107.0,0.1218629]
[1744375972193,0.1218837,82093.0,82074.0,0.3608]
[1744375972399,0.1218837,82093.0,82092.0,0.00031552]
[1744375972603,0.1218837,82093.0,82092.0,0.00018266]
[1744375973197,0.5780837,82093.0,82092.0,0.00018266]
[1744375973493,0.5780837,82093.0,82092.0,0.00022266]
[1744375973699,0.5780837,82093.0,82092.0,0.00018266]
[1744375973903,0.5780837,82093.0,82092.0,0.00022266]
[1744375978296,0.121897,82084.0,82083.0,0.21833892]
[1744375978489,0.482697,82084.0,82083.0,0.21833892]
[1744375978895,0.482697,82084.0,82083.0,0.34023742]
[1744375979199,0.482697,82084.0,82083.0,0.21833892]
[1744375979804,0.482697,82084.0,82083.0,0.1218985]
[1744375980209,0.1219,82082.0,82081.0,0.0609506]
[1744375980999,0.0609492,82084.0,82083.0,0.1218985]
[1744375981208,0.1218957,82085.0,82084.0,0.121897]
[1744375982706,0.1218957,82085.0,82084.0,0.121937]
[1744375983410,0.2259957,82085.0,82084.0,0.121937]
[1744375984410,0.2259957,82085.0,82084.0,4e-05]
[1744375984611,0.2259957,82085.0,82084.0,0.121937]
[1744375987212,0.2259957,82085.0,82084.0,4e-05]
[1744375988214,0.2259957,82085.0,82084.0,0.121937]
[1744375990315,0.2259957,82085.0,82084.0,0.224537]
[1744375991306,0.1218957,82085.0,82084.0,0.224537]
[1744375991515,0.1218957,82085.0,82084.0,0.318437]
[1744375992609,0.0609433,82091.0,82090.0,0.1828306]
[1744375992805,0.00018266,82092.0,82091.0,0.1218866]
[1744375993208,0.12206786,82092.0,82091.0,0.1218866]
[1744375993810,0.21706786,82092.0,82091.0,0.1218866]
[1744375994004,0.32056786,82092.0,82091.0,0.1218866]
[1744375994525,0.32056786,82092.0,82091.0,0.1219266]
[1744375994917,0.00018266,82092.0,82091.0,0.1219266]
[1744375995420,0.12206786,82092.0,82091.0,0.1219266]
[1744375995920,0.00018266,82092.0,82091.0,0.1219266]
[1744375996120,0.12206786,82092.0,82091.0,0.1219266]
[1744375996322,0.32056786,82092.0,82091.0,0.1219266]
[1744375997722,0.32056786,82092.0,82091.0,0.1218866]
[1744375997918,0.32056786,82092.0,82091.0,0.1219266]
[1744375999724,0.12206786,82092.0,82091.0,0.1219266]
[1744375999924,0.00018266,82092.0,82091.0,0.1219266]
[1744376000623,0.18173395,82106.0,82105.0,0.1218659]
[1744376000825,0.30359835,82106.0,82105.0,0.1218659]
[1744376001121,0.30359835,82106.0,82105.0,0.2187659]
[1744376002027,0.2170644,82106.0,82105.0,0.2187659]
[1744376002923,0.3158644,82106.0,82105.0,0.2187659]
[1744376003321,0.3158644,82106.0,82105.0,0.2238659]
[1744376003714,0.3158644,82106.0,82105.0,0.2239059]
[1744376004619,0.3608,82112.0,82108.0,0.0609306]
[1744376004918,0.3608,82112.0,82111.0,0.121857]
[1744376005126,0.4826555,82112.0,82111.0,0.121857]
[1744376005314,0.4826555,82112.0,82111.0,0.223857]
[1744376005813,0.1218555,82112.0,82111.0,0.223857]
[1744376006019,0.2190555,82112.0,82111.0,0.223857]
[1744376006323,0.0972,82112.0,82111.0,0.223857]
[1744376006511,0.10468266,82114.0,82113.0,0.121854]
[1744376006512,0.12203516,82114.0,82113.0,0.121854]
[1744376010228,0.32363516,82114.0,82113.0,0.121894]
[1744376011137,0.32363516,82114.0,82113.0,0.219794]
[1744376024340,0.32363516,82114.0,82113.0,0.320594]
[1744376024941,0.38288267,82114.0,82113.0,0.320594]
[1744376025942,0.38288267,82114.0,82113.0,0.219794]
[1744376027038,0.38288267,82114.0,82113.0,0.219754]
[1744376027240,0.38288267,82114.0,82113.0,0.219794]
[1744376028342,0.38288267,82114.0,82113.0,0.121894]
[1744376030535,0.38288267,82114.0,82113.0,0.218994]
[1744376030944,0.38288267,82114.0,82113.0,0.121894]
[1744376031136,0.38288267,82114.0,82113.0,0.121854]
[1744376031336,0.38288267,82114.0,82113.0,0.121894]
[1744376033846,0.38288267,82114.0,82113.0,0.224994]
[1744376034549,0.38288267,82114.0,82113.0,0.428094]
[1744376035048,0.15793017,82114.0,82113.0,0.428094]
[1744376035243,0.05943017,82114.0,82113.0,0.428094]
[1744376037136,0.0004,82122.0,82121.0,0.1218421]
[1744376037543,0.0004,82122.0,82121.0,0.3136421]
[1744376038549,0.25451421,82129.0,82121.0,0.3136421]
[1744376038550,0.25451421,82129.0,82128.0,0.1218317]
[1744376038843,0.25451421,82129.0,82128.0,0.49403344]
[1744376039148,0.25451421,82129.0,82128.0,0.78383344]
[1744376040543,0.25451421,82129.0,82128.0,0.78387344]
[1744376041050,0.51932546,82143.0,82135.0,0.1218213]
[1744376041250,0.25733917,82136.0,82135.0,0.4826213]
[1744376041450,0.25733917,82136.0,82135.0,0.6832213]
[1744376043555,0.14583598,82136.0,82135.0,0.6832213]
[1744376044248,0.14583598,82136.0,82135.0,0.6832613]
[1744376045759,0.87845588,82136.0,82135.0,4e-05]
[1744376045960,0.1218258,82132.0,82131.0,5.4e-05]
[1744376046254,0.1218258,82132.0,82122.0,0.0609196]
[1744376046255,0.2436827,82123.0,82122.0,0.0609196]
[1744376046449,0.6044827,82123.0,82122.0,0.0609196]
[1744376046650,0.1218421,82121.0,82120.0,0.00023666]
[1744376047061,0.1218421,82121.0,82112.0,7.29e-05]
[1744376047062,0.1218495,82116.0,82110.0,0.29124022]
[1744376047250,0.4826495,82116.0,82110.0,0.41309822]
[1744376047450,0.0609277,82113.0,82099.0,0.00048721]
[1744376047658,0.1218673,82104.0,82100.0,0.1218729]
[1744376047850,0.1218673,82104.0,82101.0,0.1218716]
[1744376048045,0.1218673,82104.0,82099.0,0.06142451]
[1744376048046,0.1218673,82104.0,82102.0,0.1218693]
[1744376048250,0.1218673,82104.0,82103.0,0.48487606]
[1744376048455,0.3223673,82104.0,82103.0,0.48487606]
[1744376048758,0.3223673,82104.0,82103.0,0.48491606]
[1744376048961,0.33362074,82104.0,82103.0,0.36304726]
[1744376049156,0.0609358,82102.0,82101.0,0.217829]
[1744376049556,0.2624358,82102.0,82101.0,0.217829]
[1744376049952,0.0609376,82099.0,82095.0,0.00018266]
[1744376050258,0.4826792,82096.0,82095.0,0.00018266]
[1744376050450,0.4826792,82096.0,82095.0,0.00022266]